fUST/lending_fUST_20250311
["ID","MTS","AMOUNT","RATE_DAILY","PERIOD"]
[355901009,1741695082957,-829.17,0.00036164,7]
[355901010,1741695082967,-500.0,0.00036164,7]
[355901011,1741695082976,-733.52,0.00036164,7]
[355901012,1741695082985,-962.34,0.00036164,7]
[355901013,1741695082994,-639.39,0.00036164,7]
[355901014,1741695083004,-500.0,0.00036164,7]
[355901015,1741695083013,-1089.45,0.00036164,7]
[355901016,1741695083022,-5880.08,0.00036164,7]
[355901017,1741695083032,-3049.91,0.00036164,7]
[355901018,1741695083041,-811.41,0.00036164,7]
[355901019,1741695083053,-784.07,0.00036164,7]
[355901020,1741695083062,-500.0,0.00036164,7]
[355901021,1741695083072,-500.0,0.00036164,7]
[355901022,1741695083082,-2787.16,0.00036164,7]
[355901023,1741695083092,-555.22,0.00036164,7]
[355901024,1741695083101,-500.0,0.00036164,7]
[355901025,1741695083111,-1232.85,0.00036164,7]
[355901026,1741695083121,-12621.59,0.00036164,2]
[355901027,1741695083130,-750.56,0.00036164,7]
[355901028,1741695083139,-500.0,0.00036164,7]
[355901029,1741695083149,-2932.36,0.00036164,7]
[355901030,1741695083158,-500.0,0.00036164,7]
[355901031,1741695083168,-500.0,0.00036164,7]
[355901032,1741695083178,-500.0,0.00036164,7]
[355901033,1741695083188,-787.55,0.00036164,7]
[355901034,1741695083199,-500.13,0.00036164,2]
[355901035,1741695083209,-1927.93,0.00036164,7]
[355901036,1741695083219,-880.5,0.00036164,7]
[355901037,1741695083230,-954.03,0.00036164,7]
[355901038,1741695083239,-2054.61,0.00036164,7]
[355901039,1741695083249,-151.0,0.00036164,5]
[355901040,1741695083260,-800.0,0.00036255,7]
[355901041,1741695083270,-316.0,0.00036287,14]
[355901042,1741695083280,-352.0,0.00036287,14]
[355901043,1741695083291,-352.0,0.00036287,14]
[355901044,1741695083303,-352.0,0.00036287,14]
[355901045,1741695083313,-352.0,0.00036287,14]
[355901046,1741695083323,-316.0,0.00036287,14]
[355901047,1741695083332,-352.0,0.00036287,14]
[355901048,1741695083342,-352.0,0.00036287,14]
[355901049,1741695083351,-352.0,0.00036287,14]
[355901050,1741695083361,-352.0,0.00036287,14]
[355901051,1741695083370,-352.0,0.00036287,14]
[355901052,1741695083379,-352.0,0.00036287,14]
[355901053,1741695083389,-352.0,0.00036287,14]
[355901054,1741695083399,-352.0,0.00036287,14]
[355901055,1741695083410,-352.0,0.00036287,14]
[355901056,1741695083420,-352.0,0.00036287,14]
[355901057,1741695083429,-352.0,0.00036287,14]
[355901058,1741695083439,-352.0,0.00036287,14]
[355901059,1741695083449,-352.0,0.00036287,14]
[355901060,1741695083459,-352.0,0.00036287,14]
[355901061,1741695083469,-352.0,0.00036287,14]
[355901062,1741695083478,-352.0,0.00036287,14]
[355901063,1741695083487,-352.0,0.00036287,14]
[355901064,1741695083497,-352.0,0.00036287,14]
[355901065,1741695083506,-352.0,0.00036287,14]
[355901066,1741695083516,-352.0,0.00036287,14]
[355901067,1741695083527,-352.0,0.00036287,14]
[355901068,1741695083538,-800.0,0.00036358,7]
[355901069,1741695083548,-800.0,0.0003636,7]
[355901070,1741695083562,-542.42257986,0.00036438,7]
[355901071,1741695083572,-625.55,0.00036438,7]
[355901072,1741695083583,-673.91,0.00036438,7]
[355901073,1741695083593,-500.0,0.00036438,7]
[355901074,1741695083604,-500.0,0.00036438,7]
[355901075,1741695083614,-500.0,0.00036438,7]
[355901076,1741695083623,-702.78,0.00036438,7]
[355901077,1741695083633,-500.0,0.00036438,7]
[355901078,1741695083643,-500.0,0.00036438,7]
[355901079,1741695083653,-557.89,0.00036438,7]
[355901080,1741695083663,-521.71,0.00036438,7]
[355901081,1741695083673,-500.0,0.00036438,7]
[355901082,1741695083682,-500.0,0.00036438,7]
[355901083,1741695083692,-908.05,0.00036438,7]
[355901084,1741695083701,-500.0,0.00036438,7]
[355901085,1741695083711,-865.89,0.00036438,7]
[355901086,1741695083722,-300.61879557,0.00036438,7]
[355901087,1741695083731,-754.14,0.00036438,7]
[355901088,1741695083742,-1673.35,0.00036438,7]
[355901089,1741695083751,-677.07,0.00036438,7]
[355901090,1741695083761,-500.0,0.00036438,7]
[355901091,1741695083771,-500.0,0.00036438,7]
[355901092,1741695083781,-1023.55,0.00036438,7]
[355901093,1741695083790,-1082.92,0.00036438,7]
[355901094,1741695083800,-873.54,0.00036438,7]
[355901095,1741695083812,-500.0,0.00036438,7]
[355901096,1741695083822,-519.6,0.00036438,7]
[355901097,1741695083831,-500.0,0.00036438,7]
[355901098,1741695083841,-500.0,0.00036438,7]
[355901099,1741695083850,-500.0,0.00036438,2]
[355901100,1741695083860,-500.0,0.00036438,7]
[355901101,1741695083870,-500.0,0.00036438,2]
[355901102,1741695083879,-1095.93,0.00036438,7]
[355901103,1741695083889,-695.17,0.00036438,7]
[355901104,1741695083899,-614.38,0.00036438,7]
[355901105,1741695083909,-500.0,0.00036438,7]
[355901106,1741695083919,-551.27,0.00036438,7]
[355901107,1741695083939,-1330.09,0.00036438,7]
[355901108,1741695083948,-500.0,0.00036438,7]
[355901109,1741695083958,-931.03,0.00036438,7]
[355901110,1741695083967,-500.0,0.00036438,7]
[355901111,1741695083977,-500.0,0.00036438,7]
[355901112,1741695083986,-591.82,0.00036438,7]
[355901113,1741695083995,-500.0,0.00036438,7]
[355901114,1741695084005,-500.0,0.00036438,7]
[355901115,1741695084015,-500.0,0.00036438,7]
[355901116,1741695084025,-933.31,0.00036438,7]
[355901117,1741695084035,-617.03,0.00036438,7]
[355901118,1741695084044,-1018.72,0.00036438,7]
[355901119,1741695084056,-795.07,0.00036438,7]
[355901120,1741695084066,-500.0,0.00036438,7]
[355901121,1741695084075,-908.92,0.00036438,7]
[355901122,1741695084084,-1737.97,0.00036438,7]
[355901123,1741695084094,-826.41,0.00036438,7]
[355901124,1741695084104,-1673.2,0.00036438,7]
[355901125,1741695084113,-260.69135769,0.00036438,7]
[355901126,1741695084123,-804.08,0.00036438,7]
[355901127,1741695084133,-779.12,0.00036438,7]
[355901128,1741695084143,-796.75,0.00036438,7]
[355901129,1741695084152,-500.0,0.00036438,7]
[355901130,1741695084161,-1274.5,0.00036438,7]
[355901131,1741695084171,-851.15,0.00036438,7]
[355901132,1741695084180,-500.0,0.00036438,7]
[355901133,1741695084190,-500.0,0.00036438,7]
[355901134,1741695084205,-1003.93,0.00036438,7]
[355901135,1741695084214,-765.82,0.00036438,7]
[355901136,1741695084223,-637.49,0.00036438,7]
[355901137,1741695084233,-2150.15,0.00036438,7]
[355901138,1741695084245,-2766.58,0.00036438,7]
[355901139,1741695084254,-500.0,0.00036438,7]
[355901140,1741695084264,-750.37,0.00036438,7]
[355901141,1741695084273,-920.19,0.00036438,7]
[355901142,1741695084284,-724.74,0.00036438,7]
[355901143,1741695084294,-500.0,0.00036438,7]
[355901144,1741695084305,-500.0,0.00036438,7]
[355901145,1741695084316,-663.78,0.00036438,7]
[355901146,1741695084327,-500.0,0.00036438,7]
[355901147,1741695084337,-795.7,0.00036438,7]
[355901148,1741695084347,-1184.43,0.00036438,7]
[355901149,1741695084357,-500.0,0.00036438,7]
[355901150,1741695084367,-821.86,0.00036438,7]
[355901151,1741695084377,-500.0,0.00036438,7]
[355901152,1741695084388,-565.85,0.00036438,7]
[355901153,1741695084397,-840.8,0.00036438,7]
[355901154,1741695084406,-566.26049512,0.00036438,7]
[355901155,1741695084416,-3149.47,0.00036438,7]
[355901156,1741695084426,-402.60883787,0.00036438,7]
[355901157,1741695084435,-1452.45,0.00036438,7]
[355901158,1741695084444,-626.6,0.00036438,7]
[355901159,1741695084454,-3187.87,0.00036438,7]
[355901160,1741695084463,-425.20871791,0.00036438,7]
[355901161,1741695084473,-540.88,0.00036438,7]
[355901162,1741695084483,-767.86,0.00036438,7]
[355901163,1741695084492,-942.67,0.00036438,7]
[355901164,1741695084502,-636.21,0.00036438,7]
[355901165,1741695084512,-1064.79,0.00036438,7]
[355901166,1741695084522,-677.39,0.00036438,7]
[355901167,1741695084532,-500.0,0.00036438,7]
[355901168,1741695084542,-1153.94,0.00036438,7]
[355901169,1741695084554,-500.0,0.00036438,7]
[355901170,1741695084565,-18956.44,0.00036438,7]
[355901171,1741695084575,-649.68,0.00036438,7]
[355901172,1741695084586,-686.45,0.00036438,7]
[355901173,1741695084596,-706.44,0.00036438,3]
[355901174,1741695084606,-803.3,0.00036438,7]
[355901175,1741695084616,-756.98,0.00036438,7]
[355901176,1741695084626,-500.0,0.00036438,7]
[355901177,1741695084635,-882.99,0.00036438,7]
[355901178,1741695084645,-564.47,0.00036438,7]
[355901179,1741695084654,-5057.55,0.00036438,7]
[355901180,1741695084664,-1673.37,0.00036438,7]
[355901181,1741695084676,-815.09,0.00036438,7]
[355901182,1741695084686,-444.53073075,0.00036438,7]
[355901183,1741695084695,-1408.71,0.00036438,7]
[355901184,1741695084705,-664.03,0.00036438,7]
[355901185,1741695084715,-1305.95,0.00036438,7]
[355901186,1741695084725,-500.0,0.00036438,7]
[355901187,1741695084736,-6781.22,0.00036438,7]
[355901188,1741695084746,-926.55,0.00036438,7]
[355901189,1741695084757,-1332.7,0.00036438,7]
[355901190,1741695084767,-1286.83,0.00036438,7]
[355901191,1741695084777,-500.0,0.00036438,7]
[355901192,1741695084787,-500.0,0.00036438,7]
[355901193,1741695084796,-736.82,0.00036438,7]
[355901194,1741695084808,-1393.62,0.00036438,7]
[355901195,1741695084817,-977.22,0.00036438,7]
[355901196,1741695084827,-1381.89,0.00036438,7]
[355901197,1741695084837,-1041.53,0.00036438,7]
[355901198,1741695084847,-169173.3,0.00036438,7]
[355901199,1741695084856,-1239.43,0.00036438,7]
[355901200,1741695085007,-500.0,0.00036438,7]
[355901201,1741695085018,-280.71924484,0.00036438,7]
[355901202,1741695085028,-500.0,0.00036438,7]
[355901203,1741695085038,-1257.39,0.00036438,7]
[355901204,1741695085048,-500.0,0.00036438,7]
[355901205,1741695085060,-3412.74,0.00036438,7]
[355901206,1741695085071,-764.76,0.00036438,7]
[355901207,1741695085081,-1042.92,0.00036438,7]
[355901208,1741695085090,-516.26,0.00036438,7]
[355901209,1741695085100,-1047.73,0.00036438,7]
[355901210,1741695085111,-500.0,0.00036438,7]
[355901211,1741695085122,-1059.9,0.00036438,7]
[355901212,1741695085132,-622.95,0.00036438,7]
[355901213,1741695085142,-3013.85,0.00036438,7]
[355901214,1741695085152,-500.0,0.00036438,7]
[355901215,1741695085162,-500.0,0.00036438,7]
[355901216,1741695085173,-667.39,0.00036438,7]
[355901217,1741695085182,-509.65,0.00036438,7]
[355901218,1741695085193,-670.74,0.00036438,7]
[355901219,1741695085203,-1582.72,0.00036438,7]
[355901220,1741695085214,-5626.47,0.00036438,7]
[355901221,1741695085235,-500.0,0.00036438,7]
[355901222,1741695085249,-603.07,0.00036438,7]
[355901223,1741695085259,-564.17,0.00036438,7]
[355901224,1741695085269,-843.1,0.00036438,7]
[355901225,1741695085279,-581.91,0.00036438,7]
[355901226,1741695085290,-3153.02,0.00036438,7]
[355901227,1741695085300,-500.0,0.00036438,7]
[355901228,1741695085310,-578.55242047,0.00036438,7]
[355901229,1741695085320,-6141.32,0.00036438,7]
[355901230,1741695085329,-500.0,0.00036438,7]
[355901231,1741695085339,-4009.94,0.00036438,7]
[355901232,1741695085349,-3615.33,0.00036438,7]
[355901233,1741695085358,-1319.72,0.00036438,7]
[355901234,1741695085369,-769.89,0.00036438,7]
[355901235,1741695085379,-500.0,0.00036438,7]
[355901236,1741695085389,-1549.54,0.00036438,7]
[355901237,1741695085400,-1201.25,0.00036438,7]
[355901238,1741695085410,-540.93,0.00036438,7]
[355901239,1741695085420,-1267.56,0.00036438,7]
[355901240,1741695085430,-1271.42,0.00036438,7]
[355901241,1741695085440,-736.19,0.00036438,7]
[355901242,1741695085449,-500.0,0.00036438,7]
[355901243,1741695085459,-7024.08,0.00036438,7]
[355901244,1741695085469,-993.56,0.00036438,7]
[355901245,1741695085479,-732.5,0.00036438,7]
[355901246,1741695085489,-541.7,0.00036438,7]
[355901247,1741695085499,-980.96,0.00036438,7]
[355901248,1741695085509,-1275.08,0.00036438,7]
[355901249,1741695085518,-770.93,0.00036438,7]
[355901250,1741695085529,-986.09,0.00036438,7]
[355901251,1741695085540,-988.89,0.00036438,7]
[355901252,1741695085550,-1935.18,0.00036438,7]
[355901253,1741695085562,-1374.06,0.00036438,7]
[355901254,1741695085572,-745.04,0.00036438,7]
[355901255,1741695085582,-5601.81,0.00036438,7]
[355901256,1741695085593,-1155.41,0.00036438,7]
[355901257,1741695085603,-500.0,0.00036438,7]
[355901258,1741695085613,-733.52,0.00036438,7]
[355901259,1741695085623,-829.17,0.00036438,7]
[355901260,1741695085633,-639.39,0.00036438,7]
[355901261,1741695085643,-962.34,0.00036438,7]
[355901262,1741695085653,-500.0,0.00036438,7]
[355901263,1741695085662,-1089.45,0.00036438,7]
[355901264,1741695085672,-5880.08,0.00036438,7]
[355901265,1741695085682,-3049.91,0.00036438,7]
[355901266,1741695085692,-811.41,0.00036438,7]
[355901267,1741695085702,-784.07,0.00036438,7]
[355901268,1741695085712,-500.0,0.00036438,7]
[355901269,1741695085722,-500.0,0.00036438,7]
[355901270,1741695085732,-2787.16,0.00036438,7]
[355901271,1741695085742,-555.22,0.00036438,7]
[355901272,1741695085751,-500.0,0.00036438,7]
[355901273,1741695085761,-1232.85,0.00036438,7]
[355901274,1741695085770,-12621.59,0.00036438,2]
[355901275,1741695085780,-750.56,0.00036438,7]
[355901276,1741695085790,-500.0,0.00036438,7]
[355901277,1741695085802,-2932.36,0.00036438,7]
[355901278,1741695085813,-500.0,0.00036438,7]
[355901279,1741695085824,-500.0,0.00036438,7]
[355901280,1741695085833,-500.0,0.00036438,7]
[355901281,1741695085844,-787.55,0.00036438,7]
[355901282,1741695085854,-500.13,0.00036438,2]
[355901283,1741695085865,-1927.93,0.00036438,7]
[355901284,1741695085875,-880.5,0.00036438,7]
[355901285,1741695085885,-954.03,0.00036438,7]
[355901286,1741695085895,-2054.61,0.00036438,7]
[355901287,1741695085905,-1706.47702723,0.00036486,2]
[355901288,1741695085915,-2664.23,0.000367,30]
[355901289,1741695085925,-266.88,0.000367,30]
[355901290,1741695085936,-817.53,0.000367,30]
[355901291,1741695085946,-625.55,0.00036712,7]
[355901292,1741695085955,-673.91,0.00036712,7]
[355901293,1741695085965,-500.0,0.00036712,7]
[355901294,1741695085975,-500.0,0.00036712,7]
[355901295,1741695085985,-500.0,0.00036712,7]
[355901296,1741695085995,-702.78,0.00036712,7]
[355901297,1741695086005,-500.0,0.00036712,7]
[355901298,1741695086015,-500.0,0.00036712,7]
[355901299,1741695086025,-557.89,0.00036712,7]
[355901300,1741695086036,-521.71,0.00036712,7]
[355901301,1741695086046,-500.0,0.00036712,7]
[355901302,1741695086057,-500.0,0.00036712,7]
[355901303,1741695086067,-908.05,0.00036712,7]
[355901304,1741695086077,-500.0,0.00036712,7]
[355901305,1741695086086,-865.89,0.00036712,7]
[355901306,1741695086096,-754.14,0.00036712,7]
[355901307,1741695086106,-1673.35,0.00036712,7]
[355901308,1741695086115,-677.07,0.00036712,7]
[355901309,1741695086126,-500.0,0.00036712,7]
[355901310,1741695086135,-500.0,0.00036712,7]
[355901311,1741695086145,-1023.55,0.00036712,7]
[355901312,1741695086155,-1082.92,0.00036712,7]
[355901313,1741695086165,-873.54,0.00036712,7]
[355901314,1741695086175,-500.0,0.00036712,7]
[355901315,1741695086185,-519.6,0.00036712,7]
[355901316,1741695086196,-500.0,0.00036712,7]
[355901317,1741695086218,-500.0,0.00036712,7]
[355901318,1741695086241,-561.18526156,0.00036712,2]
[355901319,1741695086263,-500.0,0.00036712,7]
[355901320,1741695086279,-500.0,0.00036712,2]
[355901321,1741695086292,-1095.93,0.00036712,7]
[355901322,1741695086306,-695.17,0.00036712,7]
[355901323,1741695086316,-614.38,0.00036712,7]
[355901324,1741695086326,-500.0,0.00036712,7]
[355901325,1741695086337,-551.27,0.00036712,7]
[355901326,1741695086347,-1330.09,0.00036712,7]
[355901327,1741695086356,-500.0,0.00036712,7]
[355901328,1741695086367,-931.03,0.00036712,7]
[355901329,1741695086376,-500.0,0.00036712,7]
[355901330,1741695086386,-500.0,0.00036712,7]
[355901331,1741695086396,-591.82,0.00036712,7]
[355901332,1741695086405,-500.0,0.00036712,7]
[355901333,1741695086414,-500.0,0.00036712,7]
[355901334,1741695086424,-500.0,0.00036712,7]
[355901335,1741695086433,-933.31,0.00036712,7]
[355901336,1741695086443,-617.03,0.00036712,7]
[355901337,1741695086452,-1018.72,0.00036712,7]
[355901338,1741695086462,-795.07,0.00036712,7]
[355901339,1741695086471,-500.0,0.00036712,7]
[355901340,1741695086481,-908.92,0.00036712,7]
[355901341,1741695086491,-1737.97,0.00036712,7]
[355901342,1741695086500,-826.41,0.00036712,7]
[355901343,1741695086510,-1673.2,0.00036712,7]
[355901344,1741695086519,-804.08,0.00036712,7]
[355901345,1741695086529,-779.12,0.00036712,7]
[355901346,1741695086539,-796.75,0.00036712,7]
[355901347,1741695086548,-500.0,0.00036712,7]
[355901348,1741695086560,-1274.5,0.00036712,7]
[355901349,1741695086570,-851.15,0.00036712,7]
[355901350,1741695086579,-500.0,0.00036712,7]
[355901351,1741695086588,-500.0,0.00036712,7]
[355901352,1741695086598,-1003.93,0.00036712,7]
[355901353,1741695086607,-765.82,0.00036712,7]
[355901354,1741695086617,-637.49,0.00036712,7]
[355901355,1741695086627,-2150.15,0.00036712,7]
[355901356,1741695086637,-2766.58,0.00036712,7]
[355901357,1741695086646,-500.0,0.00036712,7]
[355901358,1741695086655,-750.37,0.00036712,7]
[355901359,1741695086665,-920.19,0.00036712,7]
[355901360,1741695086675,-724.74,0.00036712,7]
[355901361,1741695086684,-500.0,0.00036712,7]
[355901362,1741695086694,-500.0,0.00036712,7]
[355901363,1741695086703,-663.78,0.00036712,7]
[355901364,1741695086713,-500.0,0.00036712,7]
[355901365,1741695086722,-795.7,0.00036712,7]
[355901366,1741695086731,-1184.43,0.00036712,7]
[355901367,1741695086741,-500.0,0.00036712,7]
[355901368,1741695086751,-821.86,0.00036712,7]
[355901369,1741695086761,-500.0,0.00036712,7]
[355901370,1741695086771,-565.85,0.00036712,7]
[355901371,1741695086780,-840.8,0.00036712,7]
[355901372,1741695086790,-3149.47,0.00036712,7]
[355901373,1741695086799,-1452.45,0.00036712,7]
[355901374,1741695086812,-626.6,0.00036712,7]
[355901375,1741695086822,-3187.87,0.00036712,7]
[355901376,1741695086832,-312.30006217,0.00036712,7]
[355901377,1741695094847,-15.39454773,0.00036712,7]
[355901378,1741695095851,-43.22506632,0.00032755,2]
[355901380,1741695137705,7157.0,0.00025,10]
[355901381,1741695240649,160.0,0.0002,3]
[355901382,1741695303180,2680.30129293,0.00022,7]
[355901383,1741695491429,767.21,0.00025,10]
[355901386,1741695848376,160.0,0.0002,3]
[355901389,1741696019541,336.0454711,0.000229,2]
[355901413,1741696232660,-200.0,0.00027,120]
[355901415,1741696232670,-152.82610872,0.00027824,5]
[355901417,1741696232680,-336.0454711,0.000279,2]
[355901419,1741696232690,-211.47790761,0.00028011,2]
[355901423,1741696232717,-288.52209239,0.00028011,2]
[355901425,1741696232727,-284.57743563,0.00028011,2]
[355901426,1741696232772,-215.42256437,0.00028011,2]
[355901428,1741696232782,-52.59255127,0.000289,5]
[355901445,1741696238677,-2133.73672804,0.000289,5]
[355901446,1741696238687,-300.0,0.00028999,2]
[355901447,1741696238696,-200.0,0.00029,120]
[355901448,1741696238706,-182.94226716,0.00029,30]
[355901449,1741696238715,-500.0,0.00029,30]
[355901450,1741696238725,-500.0,0.00029,30]
[355901451,1741696238735,-182.94226716,0.00029,30]
[355901452,1741696238744,-182.94226716,0.00029,30]
[355901453,1741696238753,-19890.6228637,0.00029935,2]
[355901454,1741696238763,-1132.1606936,0.0003,2]
[355901456,1741696238772,-6195.08196077,0.0003,30]
[355901457,1741696238781,-1437.21617494,0.0003,60]
[355901458,1741696238791,-420.0,0.00031287,2]
[355901459,1741696238800,-200.0,0.000323,120]
[355901460,1741696238809,-1292.19230177,0.00032536,2]
[355901461,1741696238819,-183.68556893,0.00032556,2]
[355901462,1741696238828,-298.14,0.00032624,3]
[355901464,1741696238837,-298.14,0.00032624,3]
[355901466,1741696238847,-724.72291792,0.00032626,2]
[355901468,1741696238856,-155.5029092,0.00032633,2]
[355901469,1741696238865,-451.85927168,0.00032633,2]
[355901470,1741696238875,-1720450.43157059,0.00032634,2]
[355901471,1741696238888,-2172.59343949,0.00032634,2]
[355901482,1741696240748,-325.31792228,0.00032633,2]
[355901507,1741696243616,-174.68207772,0.00032633,2]
[355901508,1741696243628,-500.0,0.00032633,2]
[355901509,1741696243640,-167.09512988,0.00032633,2]
[355901530,1741696246759,-332.90487012,0.00032633,2]
[355901531,1741696246770,-500.0,0.00032633,2]
[355901532,1741696246780,-500.0,0.00032633,2]
[355901533,1741696246790,-432.87915444,0.00032633,2]
[355901535,1741696246800,-500.0,0.00032633,2]
[355901537,1741696246810,-500.0,0.00032633,2]
[355901539,1741696246820,-317.8587474,0.00032633,2]
[355901541,1741696246829,-500.0,0.00032633,2]
[355901543,1741696246838,-500.0,0.00032633,2]
[355901545,1741696246848,-500.0,0.00032633,2]
[355901548,1741696246858,-985.03917403,0.00032634,2]
[355901550,1741696246871,-326.98642,0.00032634,2]
[355901616,1741696503132,20714.33651002,0.00022,7]
[355901617,1741696503176,16350.03937625,0.00022,7]
[355901618,1741696561226,1003.9220594,0.00025011,7]
[355901622,1741697045181,-951.17319852,0.0002801,2]
[355901623,1741697045207,-500.0,0.0002801,30]
[355901624,1741697045232,-150.0,0.00030534,2]
[355901625,1741697045256,-400.0,0.00031799,2]
[355901626,1741697045279,-14823.343269,0.000318,2]
[355901627,1741697045301,-13000.0,0.00032,2]
[355901628,1741697045325,-1130.66826404,0.00032373,2]
[355901629,1741697045348,-20000.0,0.000324,2]
[355901630,1741697045372,-30000.0,0.0003245,2]
[355901631,1741697045397,-30000.0,0.0003246,2]
[355901632,1741697045420,-30000.0,0.0003247,2]
[355901633,1741697045443,-567.34905296,0.00032473,5]
[355901634,1741697045465,-500.0,0.00032473,5]
[355901635,1741697045487,-194.59,0.00032479,2]
[355901636,1741697045514,-479.76208304,0.00032479,2]
[355901637,1741697045536,-416.66666667,0.0003248,3]
[355901638,1741697045559,-6634.98,0.0003248,3]
[355901639,1741697045581,-3317.49,0.0003248,3]
[355901640,1741697045603,-1658.74,0.0003248,3]
[355901641,1741697045906,-829.37,0.0003248,3]
[355901642,1741697045931,-414.69,0.0003248,3]
[355901643,1741697045955,-207.34,0.0003248,3]
[355901644,1741697045979,-622.07,0.0003248,3]
[355901645,1741697046004,-2000.0,0.0003249,120]
[355901646,1741697046026,-15572.92107546,0.0003249,3]
[355901647,1741697046051,-96675.3640025,0.0003249,2]
[355901648,1741697046074,-180.45215059,0.0003249,2]
[355901649,1741697046098,-316.30149018,0.00032499,2]
[355901650,1741697046123,-135847.72874704,0.000325,2]
[355901693,1741697262766,756.07,0.00025,10]
[355901695,1741697356160,-208.15370224,0.000304,2]
[355901696,1741697356181,-44.89366591,0.00031388,2]
[355901745,1741697432150,-112.40314609,0.00031388,2]
[355901747,1741697432161,-400.0,0.00031999,2]
[355901748,1741697432170,-500.0,0.00032,2]
[355901749,1741697432180,-500.0,0.00032,2]
[355901750,1741697432190,-500.0,0.00032,2]
[355901752,1741697432199,-651.42,0.00032,2]
[355901755,1741697432209,-7189.11666829,0.00032,2]
[355901758,1741697432218,-1000.0,0.000323,15]
[355901760,1741697432227,-989.334731,0.00032336,2]
[355901763,1741697432240,-2141.48782289,0.0003242,2]
[355901766,1741697432249,-17645.41447813,0.0003243,2]
[355901864,1741697671739,160.0,0.0002,3]
[355901868,1741697855165,-164.503393,0.00025205,2]
[355901876,1741698150521,1800000.0,0.0002501,30]
[355901886,1741698430674,188.76913483,0.0002291,2]
[355901890,1741698438153,-9000.0,0.00026,90]
[355901891,1741698438184,-500.0,0.0002801,30]
[355901892,1741698438211,-140500.0,0.0003,30]
[355901915,1741698541409,158.0,0.00022,2]
[355901916,1741698541498,158.0,0.00022192,2]
[355901917,1741698541826,158.0,0.00023014,2]
[355901920,1741698543626,161.0,0.00024164,2]
[355901922,1741698561207,-2361.06670451,0.00025205,2]
[355901924,1741698601812,-182.67124542,0.00025105,2]
[355901959,1741698635127,-96.42990249,0.00025205,2]
[355901960,1741698635139,-158.0,0.00025775,2]
[355901961,1741698635151,-105.94205518,0.000259,2]
[355901989,1741698638129,-1682.86529531,0.000259,2]
[355901990,1741698638141,-2292.16095419,0.000269,4]
[355901991,1741698638152,-158.834385,0.00027075,2]
[355901992,1741698638163,-300.0,0.00027238,2]
[355901993,1741698638174,-24900.0,0.00027239,2]
[355901994,1741698638185,-188.76913483,0.0002791,2]
[355901995,1741698638196,-900.0,0.0002801,2]
[355901996,1741698638207,-10000.0,0.0002836,2]
[355901997,1741698638218,-181.831308,0.00028522,2]
[355901998,1741698638229,-420.0,0.0002944,2]
[355901999,1741698638240,-154.38089953,0.0002988,2]
[355902000,1741698638250,-455.23,0.0002989,3]
[355902001,1741698638261,-1084.54316459,0.000299,2]
[355902002,1741698638271,-908765.36355806,0.000299,2]
[355902018,1741698640370,158.0,0.00025,2]